[Event "Titled Tuesday Blitz July 4 Late 2023"]
[White "Mamedov, Rauf"]
[Black "Zhigalko, Sergei"]
[WhiteFideId "13401653"]
[BlackFideId "13502956"]
[WhiteElo "3050"]
[BlackElo "2892"]
[Result "1-0"]
[Round "4"]
[TimeControl "180+2"]
[Date "2023.07.04"]
[WhiteClock "0:00:39"]
[BlackClock "0:00:12"]
[Board "4"]

1. e4 {[%clk 0:02:59]}  c5 {[%clk 0:03:00]} 2. Nf3 {[%clk 0:02:59]}  Nc6 {[%clk 0:03:00]} 3. c3 {[%clk 0:02:49]}  Nf6 {[%clk 0:03:00]} 4. e5 {[%clk 0:02:49]}  Nd5 {[%clk 0:03:01]} 5. d4 {[%clk 0:02:47]}  cxd4 {[%clk 0:03:02]} 6. cxd4 {[%clk 0:02:47]}  d6 {[%clk 0:03:02]} 7. Bc4 {[%clk 0:02:47]}  e6 {[%clk 0:02:59]} 8. O-O {[%clk 0:02:47]}  Be7 {[%clk 0:02:59]} 9. Qe2 {[%clk 0:02:47]}  O-O {[%clk 0:02:59]} 10. Rd1 {[%clk 0:02:46]}  Na5 {[%clk 0:02:37]} 11. Bd3 {[%clk 0:02:45]}  Nb4 {[%clk 0:02:36]} 12. Nc3 {[%clk 0:02:45]}  Nxd3 {[%clk 0:02:34]} 13. Rxd3 {[%clk 0:02:45]}  b6 {[%clk 0:02:30]} 14. b4 {[%clk 0:02:21]}  Nc4 {[%clk 0:01:42]} 15. d5 {[%clk 0:02:17]}  Nxe5 {[%clk 0:01:28]} 16. Nxe5 {[%clk 0:02:16]}  dxe5 {[%clk 0:01:28]} 17. dxe6 {[%clk 0:02:16]}  Qe8 {[%clk 0:01:27]} 18. Rg3 {[%clk 0:01:41]}  Bh4 {[%clk 0:01:01]} 19. Rh3 {[%clk 0:01:29]}  Bf6 {[%clk 0:00:47]} 20. Qe4 {[%clk 0:01:20]}  h6 {[%clk 0:00:37]} 21. Qxa8 {[%clk 0:01:15]}  e4 {[%clk 0:00:37]} 22. Qxe4 {[%clk 0:01:02]}  Bxe6 {[%clk 0:00:37]} 23. Re3 {[%clk 0:00:56]}  Qc8 {[%clk 0:00:26]} 24. Bb2 {[%clk 0:00:52]}  Re8 {[%clk 0:00:25]} 25. Rd1 {[%clk 0:00:46]}  Bd7 {[%clk 0:00:22]} 26. Qd3 {[%clk 0:00:42]}  Rd8 {[%clk 0:00:12]} 27. Nd5 {[%clk 0:00:39]} 1-0


[Site "https://www.chess.com"]

[Event "Titled Tuesday Blitz July 4 Late 2023"]
[White "Bortnyk, Olexandr"]
[Black "Henriquez Villagra, Cristobal"]
[WhiteFideId "14120828"]
[BlackFideId "3409350"]
[WhiteElo "3030"]
[BlackElo "2856"]
[Result "1-0"]
[Round "4"]
[TimeControl "180+2"]
[Date "2023.07.04"]
[WhiteClock "0:00:43"]
[BlackClock "0:00:01"]
[Board "6"]

1. d4 {[%clk 0:02:59]}  d5 {[%clk 0:02:57]} 2. Nc3 {[%clk 0:02:59]}  Nf6 {[%clk 0:02:57]} 3. Bf4 {[%clk 0:02:59]}  a6 {[%clk 0:02:57]} 4. e3 {[%clk 0:02:59]}  h6 {[%clk 0:02:57]} 5. a3 {[%clk 0:02:59]}  Bf5 {[%clk 0:02:47]} 6. Nf3 {[%clk 0:02:59]}  e6 {[%clk 0:02:46]} 7. Bd3 {[%clk 0:03:00]}  Bxd3 {[%clk 0:02:42]} 8. cxd3 {[%clk 0:03:01]}  Bd6 {[%clk 0:02:40]} 9. Ne5 {[%clk 0:03:00]}  Nfd7 {[%clk 0:02:31]} 10. O-O {[%clk 0:02:51]}  Nxe5 {[%clk 0:02:29]} 11. dxe5 {[%clk 0:02:50]}  Be7 {[%clk 0:02:29]} 12. e4 {[%clk 0:02:50]}  dxe4 {[%clk 0:02:22]} 13. d4 {[%clk 0:02:43]}  Nc6 {[%clk 0:02:13]} 14. d5 {[%clk 0:02:32]}  exd5 {[%clk 0:02:10]} 15. Nxd5 {[%clk 0:02:33]}  O-O {[%clk 0:02:02]} 16. Re1 {[%clk 0:02:32]}  Bg5 {[%clk 0:01:55]} 17. Bg3 {[%clk 0:02:13]}  Ne7 {[%clk 0:01:44]} 18. Nxe7+ {[%clk 0:02:05]}  Qxe7 {[%clk 0:01:37]} 19. Rxe4 {[%clk 0:02:03]}  Qe6 {[%clk 0:01:36]} 20. Qc2 {[%clk 0:01:42]}  Rfd8 {[%clk 0:01:23]} 21. h4 {[%clk 0:01:36]}  Be7 {[%clk 0:01:21]} 22. Qxc7 {[%clk 0:01:36]}  Rac8 {[%clk 0:01:16]} 23. Qxb7 {[%clk 0:01:12]}  Rb8 {[%clk 0:01:16]} 24. Qa7 {[%clk 0:01:09]}  Rxb2 {[%clk 0:01:15]} 25. Rc1 {[%clk 0:01:06]}  Bxa3 {[%clk 0:00:52]} 26. Ra4 {[%clk 0:01:04]}  Rb3 {[%clk 0:00:34]} 27. Rxa6 {[%clk 0:00:56]}  Bxc1 {[%clk 0:00:14]} 28. Rxe6 {[%clk 0:00:56]}  fxe6 {[%clk 0:00:15]} 29. Qc7 {[%clk 0:00:56]}  Rd1+ {[%clk 0:00:14]} 30. Kh2 {[%clk 0:00:56]}  Kh7 {[%clk 0:00:11]} 31. Qc4 {[%clk 0:00:51]}  Rbd3 {[%clk 0:00:07]} 32. Qxe6 {[%clk 0:00:51]}  Ba3 {[%clk 0:00:07]} 33. Qf5+ {[%clk 0:00:43]}  Kg8 {[%clk 0:00:07]} 34. e6 {[%clk 0:00:44]}  Rd8 {[%clk 0:00:05]} 35. Qf7+ {[%clk 0:00:43]}  Kh8 {[%clk 0:00:01]} 36. Be5 {[%clk 0:00:43]} 1-0


[Site "https://www.chess.com"]

[Event "Titled Tuesday Blitz July 4 Late 2023"]
[White "Bluebaum, Matthias"]
[Black "Kantor, Gergely"]
[WhiteFideId "24651516"]
[BlackFideId "751499"]
[WhiteElo "3024"]
[BlackElo "2840"]
[Result "1-0"]
[Round "4"]
[TimeControl "180+2"]
[Date "2023.07.04"]
[WhiteClock "0:00:07"]
[BlackClock "0:00:00"]
[Board "7"]

1. d4 {[%clk 0:03:00]}  Nc6 {[%clk 0:02:59]} 2. d5 {[%clk 0:02:59]}  Ne5 {[%clk 0:02:58]} 3. e4 {[%clk 0:03:00]}  e6 {[%clk 0:02:56]} 4. dxe6 {[%clk 0:03:01]}  dxe6 {[%clk 0:02:56]} 5. Qxd8+ {[%clk 0:03:01]}  Kxd8 {[%clk 0:02:57]} 6. f4 {[%clk 0:03:02]}  Nd7 {[%clk 0:02:55]} 7. Nc3 {[%clk 0:03:00]}  Bb4 {[%clk 0:02:55]} 8. Bd2 {[%clk 0:03:01]}  Ngf6 {[%clk 0:02:54]} 9. O-O-O {[%clk 0:02:55]}  Bxc3 {[%clk 0:02:46]} 10. Bxc3 {[%clk 0:02:53]}  Nxe4 {[%clk 0:02:47]} 11. Bxg7 {[%clk 0:02:49]}  Rg8 {[%clk 0:02:47]} 12. Bd4 {[%clk 0:02:49]}  c5 {[%clk 0:02:45]} 13. Be3 {[%clk 0:02:50]}  Ke7 {[%clk 0:02:45]} 14. g3 {[%clk 0:02:48]}  b6 {[%clk 0:02:42]} 15. Bg2 {[%clk 0:02:48]}  Bb7 {[%clk 0:02:42]} 16. Ne2 {[%clk 0:02:45]}  Rad8 {[%clk 0:02:41]} 17. Rhe1 {[%clk 0:02:35]}  Ndf6 {[%clk 0:02:39]} 18. Rxd8 {[%clk 0:02:35]}  Rxd8 {[%clk 0:02:38]} 19. a3 {[%clk 0:02:27]}  Bd5 {[%clk 0:02:32]} 20. Bh1 {[%clk 0:02:15]}  h5 {[%clk 0:02:29]} 21. f5 {[%clk 0:01:57]}  e5 {[%clk 0:02:15]} 22. Rd1 {[%clk 0:01:32]}  Bc4 {[%clk 0:01:59]} 23. Rxd8 {[%clk 0:01:31]}  Kxd8 {[%clk 0:01:59]} 24. Bf3 {[%clk 0:01:27]}  Ke7 {[%clk 0:01:28]} 25. b3 {[%clk 0:01:21]}  Bxe2 {[%clk 0:01:26]} 26. Bxe2 {[%clk 0:01:22]}  Ng4 {[%clk 0:01:18]} 27. Bg1 {[%clk 0:01:23]}  Nd6 {[%clk 0:01:15]} 28. h3 {[%clk 0:01:18]}  Nf6 {[%clk 0:01:14]} 29. g4 {[%clk 0:01:15]}  hxg4 {[%clk 0:01:14]} 30. hxg4 {[%clk 0:01:16]}  Nfe4 {[%clk 0:01:12]} 31. c4 {[%clk 0:01:02]}  f6 {[%clk 0:01:11]} 32. Kc2 {[%clk 0:01:01]}  Ng5 {[%clk 0:01:09]} 33. Be3 {[%clk 0:01:01]}  Nde4 {[%clk 0:01:09]} 34. b4 {[%clk 0:01:00]}  Kd6 {[%clk 0:01:07]} 35. Bd3 {[%clk 0:00:58]}  Kc7 {[%clk 0:01:00]} 36. Bxe4 {[%clk 0:00:50]}  Nxe4 {[%clk 0:00:59]} 37. Kd3 {[%clk 0:00:50]}  Nd6 {[%clk 0:00:40]} 38. bxc5 {[%clk 0:00:51]}  Nf7 {[%clk 0:00:40]} 39. cxb6+ {[%clk 0:00:40]}  axb6 {[%clk 0:00:40]} 40. c5 {[%clk 0:00:39]}  bxc5 {[%clk 0:00:40]} 41. Bxc5 {[%clk 0:00:40]}  Nh6 {[%clk 0:00:40]} 42. Bf8 {[%clk 0:00:15]}  Nxg4 {[%clk 0:00:40]} 43. Bg7 {[%clk 0:00:15]}  Kc6 {[%clk 0:00:29]} 44. Ke4 {[%clk 0:00:14]}  Nf2+ {[%clk 0:00:27]} 45. Kf3 {[%clk 0:00:15]}  Nd3 {[%clk 0:00:25]} 46. Bxf6 {[%clk 0:00:15]}  Kd5 {[%clk 0:00:22]} 47. a4 {[%clk 0:00:12]}  Nc5 {[%clk 0:00:21]} 48. a5 {[%clk 0:00:13]}  e4+ {[%clk 0:00:19]} 49. Ke3 {[%clk 0:00:12]}  Nd7 {[%clk 0:00:13]} 50. a6 {[%clk 0:00:07]}  Kc6 {[%clk 0:00:00]} 51. Bd4 {[%clk 0:00:07]} 1-0


[Site "https://www.chess.com"]

[Event "Titled Tuesday Blitz July 4 Late 2023"]
[White "Tahbaz, Arash"]
[Black "Talibov, Shiroghlan"]
[WhiteFideId "12528846"]
[BlackFideId "13429078"]
[WhiteElo "3005"]
[BlackElo "2806"]
[Result "0-1"]
[Round "4"]
[TimeControl "180+2"]
[Date "2023.07.04"]
[WhiteClock "0:00:02"]
[BlackClock "0:00:06"]
[Board "10"]

1. Nf3 {[%clk 0:03:00]}  Nf6 {[%clk 0:02:57]} 2. g3 {[%clk 0:03:01]}  g6 {[%clk 0:02:53]} 3. Bg2 {[%clk 0:03:01]}  Bg7 {[%clk 0:02:52]} 4. O-O {[%clk 0:03:02]}  O-O {[%clk 0:02:52]} 5. c4 {[%clk 0:03:03]}  d6 {[%clk 0:02:48]} 6. Nc3 {[%clk 0:03:03]}  c5 {[%clk 0:02:46]} 7. d4 {[%clk 0:03:03]}  Nc6 {[%clk 0:02:41]} 8. dxc5 {[%clk 0:02:59]}  dxc5 {[%clk 0:02:42]} 9. Bf4 {[%clk 0:03:00]}  Be6 {[%clk 0:02:38]} 10. Ne5 {[%clk 0:03:00]}  Nxe5 {[%clk 0:02:36]} 11. Bxe5 {[%clk 0:03:01]}  Qb6 {[%clk 0:02:30]} 12. b3 {[%clk 0:01:53]}  Rfd8 {[%clk 0:02:23]} 13. Qc1 {[%clk 0:01:53]}  Nd7 {[%clk 0:02:11]} 14. Na4 {[%clk 0:01:31]}  Qa6 {[%clk 0:02:03]} 15. Bxg7 {[%clk 0:01:30]}  Kxg7 {[%clk 0:02:04]} 16. Qe3 {[%clk 0:01:29]}  Rac8 {[%clk 0:01:59]} 17. Rad1 {[%clk 0:01:29]}  b6 {[%clk 0:01:57]} 18. Nc3 {[%clk 0:01:19]}  Nf6 {[%clk 0:01:55]} 19. a4 {[%clk 0:01:17]}  Qa5 {[%clk 0:01:53]} 20. Nd5 {[%clk 0:01:17]}  Bxd5 {[%clk 0:01:49]} 21. cxd5 {[%clk 0:01:17]}  Rc7 {[%clk 0:01:44]} 22. Qe5 {[%clk 0:01:08]}  Rcd7 {[%clk 0:01:44]} 23. e4 {[%clk 0:01:08]}  Qb4 {[%clk 0:01:43]} 24. Rd3 {[%clk 0:01:08]}  c4 {[%clk 0:01:32]} 25. bxc4 {[%clk 0:01:06]}  Qxc4 {[%clk 0:01:33]} 26. Rd4 {[%clk 0:01:03]}  Qc3 {[%clk 0:01:30]} 27. Bh3 {[%clk 0:00:54]}  e6 {[%clk 0:01:21]} 28. Rfd1 {[%clk 0:00:45]}  h6 {[%clk 0:00:56]} 29. Kg2 {[%clk 0:00:43]}  g5 {[%clk 0:00:55]} 30. R1d3 {[%clk 0:00:41]}  Qc5 {[%clk 0:00:50]} 31. Rf3 {[%clk 0:00:38]}  Qe7 {[%clk 0:00:51]} 32. d6 {[%clk 0:00:39]}  Rxd6 {[%clk 0:00:46]} 33. Rxd6 {[%clk 0:00:39]}  Rxd6 {[%clk 0:00:46]} 34. Rxf6 {[%clk 0:00:40]}  Qxf6 {[%clk 0:00:45]} 35. Qxd6 {[%clk 0:00:40]}  h5 {[%clk 0:00:44]} 36. Kg1 {[%clk 0:00:29]}  Qa1+ {[%clk 0:00:43]} 37. Bf1 {[%clk 0:00:29]}  Qxa4 {[%clk 0:00:44]} 38. Qe5+ {[%clk 0:00:29]}  Kg6 {[%clk 0:00:43]} 39. h4 {[%clk 0:00:28]}  gxh4 {[%clk 0:00:40]} 40. gxh4 {[%clk 0:00:29]}  Qd1 {[%clk 0:00:38]} 41. Qg3+ {[%clk 0:00:17]}  Kh7 {[%clk 0:00:36]} 42. Qf4 {[%clk 0:00:16]}  Kg7 {[%clk 0:00:23]} 43. Kg2 {[%clk 0:00:15]}  a5 {[%clk 0:00:20]} 44. Qg5+ {[%clk 0:00:09]}  Kh7 {[%clk 0:00:20]} 45. Qf6 {[%clk 0:00:06]}  Kg8 {[%clk 0:00:18]} 46. Qg5+ {[%clk 0:00:02]}  Kf8 {[%clk 0:00:18]} 47. Qh6+ {[%clk 0:00:02]}  Ke7 {[%clk 0:00:15]} 48. Qf4 {[%clk 0:00:03]}  a4 {[%clk 0:00:14]} 49. Qc7+ {[%clk 0:00:03]}  Kf6 {[%clk 0:00:13]} 50. e5+ {[%clk 0:00:03]}  Kg6 {[%clk 0:00:09]} 51. Qc3 {[%clk 0:00:04]}  Qg4+ {[%clk 0:00:06]} 52. Kh2 {[%clk 0:00:03]}  Qxh4+ {[%clk 0:00:06]} 53. Kg1 {[%clk 0:00:03]}  Qg4+ {[%clk 0:00:05]} 54. Kh2 {[%clk 0:00:03]}  Qh4+ {[%clk 0:00:05]} 55. Kg1 {[%clk 0:00:04]}  Qg4+ {[%clk 0:00:05]} 56. Bg2 {[%clk 0:00:05]}  h4 {[%clk 0:00:06]} 57. Kh2 {[%clk 0:00:05]}  b5 {[%clk 0:00:05]} 58. Qe3 {[%clk 0:00:04]}  b4 {[%clk 0:00:04]} 59. Bf3 {[%clk 0:00:05]}  Qg5 {[%clk 0:00:03]} 60. Be4+ {[%clk 0:00:04]}  Kh6 {[%clk 0:00:04]} 61. f4 {[%clk 0:00:05]}  Qg3+ {[%clk 0:00:02]} 62. Qxg3 {[%clk 0:00:05]}  hxg3+ {[%clk 0:00:03]} 63. Kxg3 {[%clk 0:00:06]}  b3 {[%clk 0:00:03]} 64. Bc6 {[%clk 0:00:07]}  a3 {[%clk 0:00:03]} 65. Ba4 {[%clk 0:00:01]}  a2 {[%clk 0:00:04]} 66. Bxb3 {[%clk 0:00:01]}  a1=Q {[%clk 0:00:05]} 67. Bc2 {[%clk 0:00:02]}  Qc3+ {[%clk 0:00:05]} 68. Kg4 {[%clk 0:00:02]}  Qxc2 {[%clk 0:00:06]} 0-1


[Site "https://www.chess.com"]

[Event "Titled Tuesday Blitz July 4 Late 2023"]
[White "Raja Rithvik R"]
[Black "Kollars, Dmitrij"]
[WhiteFideId "35007394"]
[BlackFideId "12909572"]
[WhiteElo "2786"]
[BlackElo "2981"]
[Result "1/2-1/2"]
[Round "4"]
[TimeControl "180+2"]
[Date "2023.07.04"]
[WhiteClock "0:00:06"]
[BlackClock "0:00:05"]
[Board "13"]

1. Nf3 {[%clk 0:03:00]}  Nf6 {[%clk 0:02:58]} 2. c4 {[%clk 0:03:01]}  e6 {[%clk 0:02:57]} 3. g3 {[%clk 0:02:59]}  a6 {[%clk 0:02:56]} 4. d4 {[%clk 0:02:55]}  b5 {[%clk 0:02:55]} 5. b3 {[%clk 0:02:56]}  Bb7 {[%clk 0:02:50]} 6. Bg2 {[%clk 0:02:56]}  Bb4+ {[%clk 0:02:49]} 7. Bd2 {[%clk 0:02:56]}  Be7 {[%clk 0:02:49]} 8. O-O {[%clk 0:02:55]}  O-O {[%clk 0:02:48]} 9. Nc3 {[%clk 0:02:56]}  Ne4 {[%clk 0:02:41]} 10. Re1 {[%clk 0:02:48]}  Nxc3 {[%clk 0:02:40]} 11. Bxc3 {[%clk 0:02:48]}  Be4 {[%clk 0:02:41]} 12. Qd2 {[%clk 0:02:41]}  bxc4 {[%clk 0:02:24]} 13. bxc4 {[%clk 0:02:40]}  d5 {[%clk 0:02:24]} 14. Ne5 {[%clk 0:02:31]}  Bxg2 {[%clk 0:02:23]} 15. Kxg2 {[%clk 0:02:32]}  dxc4 {[%clk 0:02:22]} 16. e4 {[%clk 0:02:28]}  Qc8 {[%clk 0:02:13]} 17. Nxc4 {[%clk 0:02:26]}  Rd8 {[%clk 0:02:13]} 18. Rac1 {[%clk 0:02:19]}  Nd7 {[%clk 0:02:00]} 19. d5 {[%clk 0:02:13]}  exd5 {[%clk 0:01:03]} 20. exd5 {[%clk 0:02:13]}  Bf8 {[%clk 0:01:03]} 21. Ne3 {[%clk 0:02:06]}  Nb6 {[%clk 0:01:01]} 22. Ba5 {[%clk 0:01:59]}  Qb7 {[%clk 0:00:59]} 23. Red1 {[%clk 0:01:53]}  Rd7 {[%clk 0:00:55]} 24. Kg1 {[%clk 0:01:40]}  Rad8 {[%clk 0:00:55]} 25. Rb1 {[%clk 0:01:36]}  Bc5 {[%clk 0:00:40]} 26. Qc3 {[%clk 0:00:45]}  Bxe3 {[%clk 0:00:40]} 27. Qxe3 {[%clk 0:00:46]}  Rxd5 {[%clk 0:00:39]} 28. Rxd5 {[%clk 0:00:45]}  Qxd5 {[%clk 0:00:40]} 29. Bxb6 {[%clk 0:00:45]}  cxb6 {[%clk 0:00:41]} 30. Qxb6 {[%clk 0:00:46]}  Qd3 {[%clk 0:00:41]} 31. Rb3 {[%clk 0:00:42]}  Qd1+ {[%clk 0:00:36]} 32. Kg2 {[%clk 0:00:43]}  Qd5+ {[%clk 0:00:35]} 33. Kg1 {[%clk 0:00:42]}  a5 {[%clk 0:00:24]} 34. h4 {[%clk 0:00:38]}  g6 {[%clk 0:00:16]} 35. Qb5 {[%clk 0:00:24]}  h5 {[%clk 0:00:06]} 36. Qxd5 {[%clk 0:00:16]}  Rxd5 {[%clk 0:00:07]} 37. Kg2 {[%clk 0:00:16]}  Rf5 {[%clk 0:00:04]} 38. a4 {[%clk 0:00:14]}  Kf8 {[%clk 0:00:04]} 39. Rb7 {[%clk 0:00:14]}  Rc5 {[%clk 0:00:03]} 40. Ra7 {[%clk 0:00:13]}  Rf5 {[%clk 0:00:04]} 41. Kf1 {[%clk 0:00:10]}  Ke8 {[%clk 0:00:04]} 42. Ke2 {[%clk 0:00:10]}  Kd8 {[%clk 0:00:04]} 43. Ke3 {[%clk 0:00:10]}  Ke8 {[%clk 0:00:02]} 44. Rb7 {[%clk 0:00:08]}  Kf8 {[%clk 0:00:02]} 45. Ra7 {[%clk 0:00:07]}  Ke8 {[%clk 0:00:02]} 46. f3 {[%clk 0:00:08]}  Re5+ {[%clk 0:00:02]} 47. Kf4 {[%clk 0:00:07]}  Rf5+ {[%clk 0:00:03]} 48. Ke4 {[%clk 0:00:08]}  Rc5 {[%clk 0:00:03]} 49. Ke3 {[%clk 0:00:07]}  Re5+ {[%clk 0:00:04]} 50. Kd4 {[%clk 0:00:08]}  Rf5 {[%clk 0:00:05]} 51. Ke4 {[%clk 0:00:08]}  Rc5 {[%clk 0:00:04]} 52. Kd3 {[%clk 0:00:05]}  Rf5 {[%clk 0:00:03]} 53. Ke2 {[%clk 0:00:05]}  Re5+ {[%clk 0:00:04]} 54. Kd3 {[%clk 0:00:05]}  Rc5 {[%clk 0:00:04]} 55. Kd4 {[%clk 0:00:05]}  Rf5 {[%clk 0:00:05]} 56. Ke4 {[%clk 0:00:06]} 1/2-1/2


[Site "https://www.chess.com"]

[Event "Titled Tuesday Blitz July 4 Late 2023"]
[White "Fisher_TheGalactic"]
[Black "Oparin, Grigoriy"]
[BlackFideId "24125890"]
[WhiteElo "2670"]
[BlackElo "2955"]
[Result "0-1"]
[Round "4"]
[TimeControl "180+2"]
[Date "2023.07.04"]
[WhiteClock "0:00:10"]
[BlackClock "0:02:13"]
[Board "16"]

1. Nf3 {[%clk 0:03:00]}  c5 {[%clk 0:02:59]} 2. g3 {[%clk 0:03:00]}  Nc6 {[%clk 0:02:59]} 3. Bg2 {[%clk 0:03:01]}  d5 {[%clk 0:03:00]} 4. O-O {[%clk 0:03:01]}  Nf6 {[%clk 0:03:00]} 5. d3 {[%clk 0:03:02]}  g6 {[%clk 0:02:59]} 6. Nbd2 {[%clk 0:03:02]}  Bg7 {[%clk 0:03:00]} 7. e4 {[%clk 0:03:03]}  O-O {[%clk 0:03:00]} 8. c3 {[%clk 0:03:03]}  e5 {[%clk 0:02:57]} 9. Qe2 {[%clk 0:02:58]}  Re8 {[%clk 0:02:54]} 10. Rd1 {[%clk 0:02:57]}  Qc7 {[%clk 0:02:53]} 11. Nf1 {[%clk 0:02:56]}  h6 {[%clk 0:02:51]} 12. Ne3 {[%clk 0:02:49]}  Be6 {[%clk 0:02:51]} 13. exd5 {[%clk 0:02:48]}  Nxd5 {[%clk 0:02:52]} 14. Nxd5 {[%clk 0:02:46]}  Bxd5 {[%clk 0:02:52]} 15. Nh4 {[%clk 0:02:46]}  Rad8 {[%clk 0:02:50]} 16. Be3 {[%clk 0:02:43]}  b6 {[%clk 0:02:49]} 17. Bxd5 {[%clk 0:02:41]}  Rxd5 {[%clk 0:02:50]} 18. Ng2 {[%clk 0:02:41]}  Red8 {[%clk 0:02:47]} 19. Ne1 {[%clk 0:02:38]}  Qd7 {[%clk 0:02:46]} 20. f3 {[%clk 0:02:29]}  c4 {[%clk 0:02:44]} 21. d4 {[%clk 0:01:12]}  exd4 {[%clk 0:02:42]} 22. cxd4 {[%clk 0:01:08]}  Bxd4 {[%clk 0:02:40]} 23. Ng2 {[%clk 0:00:49]}  Ne5 {[%clk 0:02:27]} 24. Kh1 {[%clk 0:00:43]}  Nd3 {[%clk 0:02:23]} 25. Bxd4 {[%clk 0:00:35]}  Rxd4 {[%clk 0:02:24]} 26. Rf1 {[%clk 0:00:30]}  b5 {[%clk 0:02:21]} 27. Qc2 {[%clk 0:00:22]}  h5 {[%clk 0:02:18]} 28. Qc3 {[%clk 0:00:19]}  b4 {[%clk 0:02:15]} 29. Qc2 {[%clk 0:00:19]}  Re8 {[%clk 0:02:14]} 30. Rad1 {[%clk 0:00:16]}  Nf2+ {[%clk 0:02:14]} 31. Qxf2 {[%clk 0:00:14]}  Rxd1 {[%clk 0:02:15]} 32. h4 {[%clk 0:00:15]}  c3 {[%clk 0:02:12]} 33. bxc3 {[%clk 0:00:10]}  bxc3 {[%clk 0:02:13]} 0-1


[Site "https://www.chess.com"]

[Event "Titled Tuesday Blitz July 4 Late 2023"]
[White "Leitao, Rafael"]
[Black "Erigaisi Arjun"]
[WhiteFideId "2101246"]
[BlackFideId "35009192"]
[WhiteElo "2785"]
[BlackElo "3144"]
[Result "0-1"]
[Round "4"]
[TimeControl "180+2"]
[Date "2023.07.04"]
[WhiteClock "0:00:00"]
[BlackClock "0:00:08"]
[Board "19"]

1. c4 {[%clk 0:03:00]}  b6 {[%clk 0:02:56]} 2. d4 {[%clk 0:02:56]}  Bb7 {[%clk 0:02:56]} 3. Nc3 {[%clk 0:02:56]}  e6 {[%clk 0:02:56]} 4. a3 {[%clk 0:02:57]}  Nf6 {[%clk 0:02:49]} 5. d5 {[%clk 0:02:56]}  Bd6 {[%clk 0:02:49]} 6. Nf3 {[%clk 0:02:55]}  O-O {[%clk 0:02:48]} 7. g3 {[%clk 0:02:55]}  Na6 {[%clk 0:02:29]} 8. Bg2 {[%clk 0:02:48]}  Nc5 {[%clk 0:02:30]} 9. b4 {[%clk 0:02:41]}  Nce4 {[%clk 0:02:29]} 10. Nxe4 {[%clk 0:02:41]}  Nxe4 {[%clk 0:02:30]} 11. Bb2 {[%clk 0:02:38]}  exd5 {[%clk 0:02:25]} 12. cxd5 {[%clk 0:02:35]}  a5 {[%clk 0:02:10]} 13. O-O {[%clk 0:02:28]}  Re8 {[%clk 0:02:10]} 14. Qb3 {[%clk 0:02:02]}  Nf6 {[%clk 0:02:00]} 15. Nd4 {[%clk 0:02:00]}  Be5 {[%clk 0:02:01]} 16. d6 {[%clk 0:01:38]}  Bxg2 {[%clk 0:01:54]} 17. dxc7 {[%clk 0:01:38]}  Qxc7 {[%clk 0:01:52]} 18. Kxg2 {[%clk 0:01:37]}  d5 {[%clk 0:01:34]} 19. Rac1 {[%clk 0:01:33]}  Qd7 {[%clk 0:01:34]} 20. Rfd1 {[%clk 0:01:12]}  h5 {[%clk 0:01:28]} 21. h4 {[%clk 0:00:49]}  Qg4 {[%clk 0:01:19]} 22. Qf3 {[%clk 0:00:44]}  axb4 {[%clk 0:01:19]} 23. axb4 {[%clk 0:00:44]}  Ra2 {[%clk 0:01:13]} 24. Qxg4 {[%clk 0:00:29]}  hxg4 {[%clk 0:01:14]} 25. Rc2 {[%clk 0:00:27]}  Ne4 {[%clk 0:01:13]} 26. Rdc1 {[%clk 0:00:26]}  Nd6 {[%clk 0:01:07]} 27. Bc3 {[%clk 0:00:20]}  Rxc2 {[%clk 0:01:05]} 28. Rxc2 {[%clk 0:00:20]}  Nc4 {[%clk 0:00:56]} 29. e3 {[%clk 0:00:16]}  Bxd4 {[%clk 0:00:41]} 30. Bxd4 {[%clk 0:00:16]}  Ra8 {[%clk 0:00:42]} 31. e4 {[%clk 0:00:16]}  Rc8 {[%clk 0:00:43]} 32. Re2 {[%clk 0:00:14]}  Re8 {[%clk 0:00:40]} 33. e5 {[%clk 0:00:11]}  f6 {[%clk 0:00:31]} 34. e6 {[%clk 0:00:11]}  Kf8 {[%clk 0:00:32]} 35. f3 {[%clk 0:00:11]}  gxf3+ {[%clk 0:00:32]} 36. Kxf3 {[%clk 0:00:12]}  Ke7 {[%clk 0:00:33]} 37. Kg4 {[%clk 0:00:10]}  g6 {[%clk 0:00:22]} 38. h5 {[%clk 0:00:10]}  gxh5+ {[%clk 0:00:23]} 39. Kxh5 {[%clk 0:00:08]}  Rg8 {[%clk 0:00:23]} 40. g4 {[%clk 0:00:07]}  Rg5+ {[%clk 0:00:24]} 41. Kh4 {[%clk 0:00:08]}  Ne5 {[%clk 0:00:15]} 42. Bxe5 {[%clk 0:00:04]}  Rxe5 {[%clk 0:00:16]} 43. Rc2 {[%clk 0:00:02]}  Rxe6 {[%clk 0:00:14]} 44. b5 {[%clk 0:00:01]}  d4 {[%clk 0:00:11]} 45. Kg3 {[%clk 0:00:01]}  Kd6 {[%clk 0:00:09]} 46. Kf4 {[%clk 0:00:01]}  Kd5 {[%clk 0:00:10]} 47. Kf5 {[%clk 0:00:00]}  Rd6 {[%clk 0:00:08]} 0-1


[Site "https://www.chess.com"]